Cogmind - Beta 13 @@@ ROGUE MODE // 2024.07.12 @ 15:47:05 Player: Zamshi Result: Destroyed by S-10 Pest with Light Assault Rifle Performance ------------- Evolutions (2) 1000 Regions Visited (3) 600 Robots Destroyed (36) 180 Value Destroyed (798) 798 Prototype IDs (2) 40 Alien Tech Used (0) 0 Bonus (62) 62 TOTAL SCORE: 2680 Bonus ------- High Alert Combat Kills 62 Cogmind --------- Core Integrity 0/550 Matter 44/300 Energy 100/100 System Corruption 0% Temperature Cool (0) Movement Core (100) Ox1 Location -8/Materials Parts ------- > --- POWER (1) -------- (None) > --- PROPULSION (4) --- (None) > --- UTILITY (4) ------ Small Storage Unit > --- WEAPON (2) ------- (None) > --- INVENTORY (8) ---- Deuterium Engine Weight Redist. System ECM Suite Hacking Suite Hacking Suite Hacking Suite Minigun Missile Launcher Peak State ------------ > --- POWER ------------ Light Ion Engine > --- PROPULSION ------- Hover Unit Hover Unit Hover Unit > --- UTILITY ---------- Small Storage Unit Large Battery Seismic Detector > --- WEAPON ----------- Assault Cannon Grenade Launcher > --- INVENTORY -------- Ion Engine Light Ion Engine ECM Suite Medium Laser Assault Cannon Shock Bomb Launcher Grenade Launcher [Rating: 12] Favorites ----------- Power Light Ion Engine Engine Light Ion Engine Propulsion Hover Unit Treads Light Treads Hover Unit Hover Unit Flight Unit Flight Unit Utility Small Storage Unit Device Seismic Detector Storage Small Storage Unit Weapon Grenade Launcher Energy Gun Medium Laser Ballistic Gun Assault Rifle Ballistic Cannon Assault Cannon Launcher Grenade Launcher Build | -11 -10 -9 -8 ------- Run | Yrd Mat Mat Mat Slots Evolved 4 | . . 2 2 Power . | . . . . Propulsion 2 | . . 1 1 Utility 2 | . . 1 1 Weapon . | . . . . Parts Attached 32 | 7 14 11 . Power 1 | 1 . . . Engine 1 | 1 . . . Core . | . . . . Reactor . | . . . . Propulsion 8 | 2 4 2 . Treads 2 | 2 . . . Leg . | . . . . Wheel . | . . . . Hover 4 | . 2 2 . Flight 2 | . 2 . . Utility 6 | 2 1 3 . Device 4 | 1 1 2 . Storage 2 | 1 . 1 . Processor . | . . . . Hackware . | . . . . Protection . | . . . . Artifact . | . . . . Weapon 17 | 2 9 6 . Energy Gun 3 | 1 2 . . Energy Cannon . | . . . . Ballistic Gun 2 | 1 1 . . Ballistic Cannon 1 | . . 1 . Launcher 11 | . 6 5 . Special Weapon . | . . . . Impact Weapon . | . . . . Slashing Weapon . | . . . . Piercing Weapon . | . . . . Special Melee Weapon . | . . . . Unidentified Prototypes . | . . . . Parts Lost 10 | . 1 1 8 Power 1 | . . . 1 Propulsion 4 | . . 1 3 Utility 3 | . 1 . 2 Weapon 2 | . . . 2 Highest Loss Streak 8 | . 1 1 8 To Critical Strikes . | . . . . Average Slot Usage (%) 89 | . 91 97 64 Engine 11 | . 14 11 6 Treads 3 | . 8 . . Hover 23 | . 17 32 20 Device 11 | . 12 11 7 Storage 17 | . 14 21 16 Energy Gun 3 | . 7 . . Ballistic Gun 1 | . 4 . . Launcher 14 | . 10 19 14 Naked Turns . | . . . . Heaviest Build 20 | 13 15 20 18 Greatest Support 40 | 40 40 18 18 Greatest Overweight (x) 3 | . 1 1 3 Average Overweight (x) . | . . . . Largest Inventory Capacity 8 | 8 8 8 8 Average Capacity 7 | 7 8 8 8 Most Carried 8 | . 8 8 8 Average Carried 5 | . 5 7 7 Final Capacity 8 | 8 8 8 8 Final Carried 8 | . 8 8 8 Class Distribution -------------------- 100% | Mutant Dominant Class ---------------- Mutant | -10/Materials Mutant | -9/Materials Mutant | -8/Materials Resources | -11 -10 -9 -8 ----------- Run | Yrd Mat Mat Mat Matter Collected 636 | 237 251 148 . Remotely . | . . . . Salvage Created 609 | 12 301 296 . Parts 64 | 5 24 35 . Haulers Intercepted 2 | . 1 1 . Recyclers Shooed 3 | . 2 1 . Parts Field Recycled . | . . . . Retrieved Matter . | . . . . Parts Self-Destructed . | . . . . Prevented . | . . . . Kills | -11 -10 -9 -8 ------- Run | Yrd Mat Mat Mat Combat Hostiles Destroyed 22 | . 8 14 . AOE 22 | . 8 14 . Classes Destroyed 10 | 1 7 2 . Worker 2 | . . 2 . Builder 4 | . 1 3 . Tunneler 1 | 1 . . . Hauler 2 | . 1 1 . Recycler 1 | . 1 . . Operator 1 | . 1 . . Watcher 3 | . 2 1 . Swarmer 7 | . 3 4 . Grunt 12 | . 5 7 . Sentry 3 | . . 3 . Best Kill Streak 12 | 1 5 12 . Combat Bots Only 8 | . 3 8 . Max Kills in Single Turn 4 | 1 3 4 . Gunslinging . | . . . . Exploded 3 | . 2 3 . Melee . | . . . . Uniques/NPCs Destroyed . | . . . . Combat | -11 -10 -9 -8 -------- Run | Yrd Mat Mat Mat Hostile Shots Fired 188 | . 29 29 130 Missed 60 | . 6 15 39 Damage Taken 1330 | . 227 171 932 Core 600 | . 33 17 550 Absorbed by Shields . | . . . . Regen/Repaired (Parts) 91 | . . 91 . Core Remaining (%) 93 | 100 86 95 . Volleys Fired 29 | 1 15 13 . Largest 2 | 2 2 2 . Hottest 80 | 70 80 60 . Shots Fired 55 | 2 28 25 . Gun 15 | 2 13 . . Cannon 1 | . . 1 . Launcher 39 | . 15 24 . Special . | . . . . Kinetic 11 | 1 9 1 . Thermal 5 | 1 4 . . Explosive 39 | . 15 24 . Electromagnetic . | . . . . Robot Hit Streak 16 | 2 9 16 . Robot Miss Streak 4 | . 4 2 . Penetration Max . | . . . . Secondary Targets . | . . . . Shots Hit Robots 30 | 2 14 14 . Core Hits 59 | 1 20 38 . Critical Kills . | . . . . Critical Parts Destroyed . | . . . . Critical Strikes . | . . . . Melee Attacks . | . . . . Impact . | . . . . Slashing . | . . . . Piercing . | . . . . Sneak Attacks . | . . . . Combat Hostiles . | . . . . Follow-up Attacks . | . . . . Damage Inflicted 2402 | 25 978 1399 . Guns 109 | 25 84 . . Cannons 24 | . . 24 . Explosions 2261 | . 894 1367 . Melee . | . . . . Ramming 8 | . . 8 . Kinetic 83 | 12 47 24 . Thermal 50 | 13 37 . . Explosive 2261 | . 894 1367 . Electromagnetic . | . . . . Impact . | . . . . Slashing . | . . . . Piercing . | . . . . Highest Corruption . | . . . . Average Corruption . | . . . . Corruption Purged . | . . . . Corruption Blocked . | . . . . Overload Shots . | . . . . Overflow Damage 26 | . 11 15 . Projectiles . | . . . . Explosions 26 | . 11 15 . Melee . | . . . . Knockbacks 1 | . . 1 . Impact . | . . . . Kinetic 1 | . . 1 . Secondary . | . . . . Self-Inflicted Damage 12 | . 8 4 . Shots 1 | . 1 . . Rammed 1 | . . 1 . Targets Rammed 1 | . . 1 . Kicked . | . . . . Crushed . | . . . . Highest Temperature 24 | 9 24 12 3 Average Temperature 9 | 6 11 5 3 Received Heat Transfer 219 | . 72 57 90 Siege Activations . | . . . . Robots Corrupted . | . . . . Combat Hostiles . | . . . . Parts Fried . | . . . . Impact Corruptions . | . . . . Robots Melted . | . . . . Combat Hostiles . | . . . . Parts Melted . | . . . . Heat Transferred 148 | 37 111 . . Parts Sabotaged . | . . . . Parts Stolen . | . . . . Parts Stripped . | . . . . Power Chain Reactions . | . . . . Alert | -11 -10 -9 -8 ------- Run | Yrd Mat Mat Mat Peak Influence 675 | 5 379 675 334 Initial 284 | . 3 76 284 Average 282 | 2 207 464 297 Maximum Alert Level 2 | . 1 2 1 Low Security (%) 37 | 100 42 24 . Level 1 40 | . 57 11 100 Level 2 21 | . . 63 . Level 3 . | . . . . Level 4 . | . . . . Level 5 . | . . . . High Security . | . . . . Max Security . | . . . . Squads Dispatched 6 | . 3 3 . Investigation 4 | . 2 2 . Extermination . | . . . . Reinforcement 2 | . 1 1 . Assault . | . . . . Garrison . | . . . . Intercept . | . . . . Searches Triggered . | . . . . Construction Impeded . | . . . . Haulers Reinforced . | . . . . Active Scanning Responses . | . . . . Cargo Convoy Interrupts . | . . . . Stealth | -11 -10 -9 -8 --------- Run | Yrd Mat Mat Mat Distress Signals 6 | . 3 1 2 Communications Jammed . | . . . . Distress Signals . | . . . . Times Spotted 47 | . 14 22 11 Peak Tracking Total 13 | . 4 7 13 Tactical Retreats 2 | . . 1 1 Traps | -11 -10 -9 -8 ------- Run | Yrd Mat Mat Mat Traps Triggered . | . . . . Indirectly . | . . . . Trap Hack Attempts . | . . . . Triggered . | . . . . Disarmed . | . . . . Reprogrammed . | . . . . Reused . | . . . . Traps Extracted . | . . . . Installed . | . . . . Triggered . | . . . . Machines | -11 -10 -9 -8 ---------- Run | Yrd Mat Mat Mat Machines Disabled 3 | . 1 2 . Max in Single Turn 1 | . 1 1 . Machines Repaired . | . . . . Machines Dismantled . | . . . . Machines Sabotaged . | . . . . Overloaded Fab Kills . | . . . . Hacking | -11 -10 -9 -8 --------- Run | Yrd Mat Mat Mat Machines Accessed 13 | . 6 5 2 Terminals 8 | . 4 3 1 Fabricators . | . . . . Repair Stations 2 | . . 2 . Recycling Units 3 | . 2 . 1 Scanalyzers . | . . . . Garrison Access . | . . . . Total Hacks 42 | . 24 13 5 Successful 21 | . 13 6 2 Failed 21 | . 11 7 3 Catastrophic 5 | . 2 2 1 Database Lockouts . | . . . . Manual . | . . . . Terminals 27 | . 17 8 2 Fabricators . | . . . . Repair Stations 5 | . . 5 . Recycling Units 10 | . 7 . 3 Scanalyzers . | . . . . Garrison Access . | . . . . Terminal Hacks 13 | . 10 2 1 Record 3 | . 1 2 . Prototype ID Bank 1 | . 1 . . Emergency Access Points 1 | . 1 . . Patrol Status 1 | . 1 . . Transport Status 1 | . 1 . . Recall Reinforcements 2 | . 2 . . Hauler Manifests 2 | . 2 . . Registered Components 1 | . 1 . . Zone Layout 1 | . . . 1 Fabricator Hacks . | . . . . Repair Station Hacks 4 | . . 4 . Scan Component 2 | . . 2 . Repair 2 | . . 2 . Recycling Unit Hacks 4 | . 3 . 1 Report Inventory 2 | . 2 . . Retrieve Matter 1 | . . . 1 Retrieve Components 1 | . 1 . . Scanalyzer . | . . . . Garrison Access Hacks . | . . . . Unauthorized Hacks . | . . . . Terminals . | . . . . Fabricators . | . . . . Repair Stations . | . . . . Recycling Units . | . . . . Scanalyzers . | . . . . Garrison Access . | . . . . Data Cores Recovered 1 | . 1 . . Used . | . . . . Hacking Detections 12 | . 6 4 2 Full Trace Events 6 | . 3 3 . Feedback Events . | . . . . Feedback Blocked . | . . . . Robot Schematics Acquired . | . . . . Robots Built . | . . . . Authchips . | . . . . Time . | . . . . Total Robot Build Rating . | . . . . Part Schematics Acquired . | . . . . Parts Built . | . . . . Authchips . | . . . . Time . | . . . . Total Part Build Rating . | . . . . Parts Repaired 2 | . . 2 . Time 52 | . . 52 . Parts Recycled . | . . . . Recycled Matter . | . . . . Retrieved Matter . | . . . . Retrieved Components 10 | . 10 . . Parts Scanalyzed . | . . . . Part Schematics Acquired . | . . . . Parts Damaged . | . . . . Bothacking | -11 -10 -9 -8 ------------ Run | Yrd Mat Mat Mat Used RIF Installer . | . . . . Robots Hacked . | . . . . Non-combat . | . . . . Combat . | . . . . Robot Hacks Applied . | . . . . Relay Couplers Released . | . . . . Fabnet Peak Effective % . | . . . . Robots Rewired . | . . . . Allies Hacked . | . . . . Hacks Repelled . | . . . . Allies | -11 -10 -9 -8 -------- Run | Yrd Mat Mat Mat Total Allies . | . . . . Largest Group . | . . . . Highest-Rated Group . | . . . . Highest-Rated Ally . | . . . . Total Orders . | . . . . Ally Attacks . | . . . . Total Damage . | . . . . Kills . | . . . . Allies Corrupted . | . . . . Allies Melted . | . . . . Intel | -11 -10 -9 -8 ------- Run | Yrd Mat Mat Mat Robot Analysis Total . | . . . . Derelict Logs Recovered . | . . . . Drone Launches . | . . . . Drone Recoveries . | . . . . Exploration | -11 -10 -9 -8 ------------- Run | Yrd Mat Mat Mat Turns Passed 1120 | 134 457 382 147 Spaces Moved 1161 | 77 461 407 216 Core 7 | 3 . . 4 Treads 140 | 74 66 . . Legs . | . . . . Wheels . | . . . . Hover 999 | . 380 407 212 Flight 15 | . 15 . . Fastest Speed 50 | 50 56 52 52 Average Speed 72 | 155 81 53 56 Slowest Speed 200 | 160 160 116 200 Overloaded Moves . | . . . . Propulsion Burnouts . | . . . . Robots Hopped . | . . . . Cave-ins Triggered . | . . . . Exploration Rate (%) 40 | 5 79 46 33 Regions Visited 3 Branch Regions . Pre-discovered Areas . | . . . . Known Exits Taken . | . . . . Unknown Exits Taken 3 | 1 1 1 . Scrap Searched . | . . . . Spaces Dug . | . . . . Terrain Destroyed 223 | . 106 117 . Melee . | . . . . Projectile . | . . . . AOE 223 | . 106 117 . Terrain Rammed . | . . . . Walls Destroyed . | . . . . Machines Disabled . | . . . . Actions | -11 -10 -9 -8 --------- Run | Yrd Mat Mat Mat Total 1384 | 86 512 543 243 Wait 123 | 2 . 98 23 Move 1158 | 76 460 406 216 Hop . | . . . . Pick Up 24 | . 13 9 2 Fast Attach 9 | 7 . 2 . Attach 9 | . 5 4 . Detach 5 | . 5 . . Swap 14 | . 9 5 . Drop 12 | . 5 5 2 Fire 29 | 1 15 13 . Melee . | . . . . Ram 1 | . . 1 . Kick . | . . . . Crush . | . . . . Escape Stasis . | . . . . Rewire . | . . . . Trap . | . . . . Miscellaneous . | . . . . Route ------- -11/Scrapyard -10/Materials (discovered 2 exits: *Mat / [*Min]) -9/Materials (discovered 3 exits: *Mat / [*Min] / [*Sto]) -8/Materials History --------- Turn | Location | Event 9 | -11/Scrapyard | Discovered new exit (range 15) 135 | -11/Scrapyard | Entered Materials 335 | -10/Materials | Build established: Mutant 438 | -10/Materials | Discovered new exit (range 14) 577 | -10/Materials | Discovered new exit (range 12) 592 | -10/Materials | Entered another Materials area 592 | -9/Materials | Evolved 2 slots: Propulsion x1, Utility x1 634 | -9/Materials | Discovered new exit (range 15) 697 | -9/Materials | Discovered new exit (range 13) 725 | -9/Materials | Repaired Grenade Launcher 772 | -9/Materials | Destroyed 8 combat bots 817 | -9/Materials | Repaired Grenade Launcher 965 | -9/Materials | Discovered new exit (range 16) 974 | -9/Materials | Entered another Materials area 974 | -8/Materials | Evolved 2 slots: Propulsion x1, Utility x1 1111 | -8/Materials | Core integrity fell below 50% 1117 | -8/Materials | Core integrity fell below 20% 1121 | -8/Materials | Destroyed by S-10 Pest with Light Assault Rifle Last Messages --------------- Critical hit (Burn: +37). Hover Unit destroyed. Grenade Launcher destroyed. Seismic Detector destroyed. Hover Unit destroyed. S-10 Pest destroyed. Grenade Launcher destroyed. S-10 Pest destroyed. K-01 Serf collects debris. Integration Channel disabled. K-01 Serf collects debris. S-10 Pest destroyed. Lrg. Battery destroyed. K-01 Serf collects debris. Penetrated by Slug. R-06 Scavenger collects Flight Unit. K-01 Serf collects debris. Penetrated by Slug. R-06 Scavenger collects Lgt. Assault Rifle. Penetrated by Slug. Map ----- +----------------------------------------------------+ | ???????? """"" #????????? | | ????????? """"" #????????? | | ????????? #???###### | | ??????????# #??##!!!!# | | ??????????# """"" """"" #??#! ! | | ??????????# """"" """"" #??# | | ??????????# """"" """"" #### ##### | | ??????????#^ #???? | | ??????????# * #???? | | ??????????# """"" #???? | | ??????????# """"" ##+####### | | ??????????# """"" # | | ???????####!! # """ | | ???????#"""!! # = """ | | ???????#"Y !! """"" # """ | | ########""" """"" # ! | | # ] #### """"" ######+### | | # + ????+ ?? | | # "" #### ????# ?? | | # S"" #??# ######### #???# ""? | | # "" #??# # + #???# ""? | | #! #??# # " ! #?###### #???# """ | | ####+###??# #h""" #??????? #???# """ | | ?# #### # """ #??????? ????+ "?? | | ?# =%Y s # "" = #????????????? "?? | | ?# ! *r *%s@ "" #????????????? "?? | | ?# s s # """ #????????????? ??? | | ?# ###### "" #????????????? ??? | | ?### ###????# "" #?????????????#??# | | ???# #??????# " #?????????? | | ???# #??????# =#?????????? | | ???# ???????#;#######?????????? | | ???# ???????# #?????????????????###### | | ???# ???????#;#??????????????????????# | | ???# ???????? ???????????????????????# | | ???##???????? ???????????????????????# | | ????????????? ???????????????????????# | | ?????????????]???????????????????????# | | ?????????????]???????????????????????# | | ????????????? ???????????????????????# | | ????????????? ???????????????????????# | | ?????????????????????????????????????# | | ?????????????????????????????????????? | | ?????????????????????????????????????? | | ?????????????????????????????????????? | | ?????????????????????????????????????? | | ?????????????????????????????????????? | | ?????????????????????????????????????? | | ?????????????????????????????????????? | | ?????????????????????????????????????? | +----------------------------------------------------+ Best States ------------- Heat Dissipation 31 Energy Generation 10 Energy Capacity 325 Matter Stores 300 Matter Capacity 300 Sight Range 16 Terrain Scan Range 16 Terrain Scan Density 10 ECM Strength 1 Evasion (%) 54 Recoil Reduction 2 Item Schematics ----------------- None Robot Schematics ------------------ None Fabricated ------------ Nothing Alien Tech Used ----------------- None Achievements -------------- Shopping List Challenges ------------ None Game ------ Seed CobblerColdExpander Manual? 0 Play Time 00:28:35 Cumulative 4.6 hours Start 2024.07.12 @ 15:16:33 End 2024.07.12 @ 15:47:05 Sessions 1 Manual Loads 0 Difficulty Rogue Special Mode None Game No. 7 Rogue 7 Adventurer 0 Explorer 0 Win Type - Total 0 Types 0/0/0/0/0/0/0/0/0 Lore% 10 Gallery% 7 Achievement% 6 Wizard Run 0 Options --------- Layout 1 ASCII 0 Keyboard 0 Movement Mouse Keybinds 0 Fullscreen 1 Font 24/Smallcaps Map View 50x35 Zoom Use 0% Tactical HUD 0 Map Filters NONE Filters NONE Steam 1 RUN: 7f6d4130-585a-4369-addc-3093b330ea4d